[Event "FRA-ch Youth U14 2018"]
[Site "Agen"]
[Date "2018.04.15"]
[Round "1"]
[White "Bacrot, Alexandre"]
[Black "Pavee, Louis"]
[Result "1-0"]
[ECO "C01"]
[WhiteElo "2180"]
[BlackElo "1814"]
[Annotator "NA RC"]
[PlyCount "47"]
[EventDate "2018.??.??"]
[EventType "swiss"]
[EventCountry "FRA"]
[SourceTitle "playchess.com"]
[Source "ChessBase"]
[SourceQuality "1"]
[TimeControl "5400+30"]

1. e4 {[%emt 0:00:00]} e6 {[%emt 0:00:06]} 2. d4 {[%emt 0:00:00]} d5 {[%emt 0:00:09]} 3. exd5 {[%emt 0:00:00]} exd5 {[%emt 0:00:08]} 4. Nf3 {[%emt 0:00:00]} Bd6 {[%emt 0:01:46]} 5. c4 {[%emt 0:00:00]} c6 {[%emt 0:00:19]} 6. c5 {[%emt 0:06:42]} Bc7 {[%emt 0:00:16] C01: French: Exchange Variation} 7. Bd3 {[%emt 0:00:07]} Nf6 {[%emt 0:01:37]} 8. O-O {[%emt 0:02:15]} O-O {[%emt 0:00:28]} 9. Bg5 {[%emt 0:05:15]} Bg4 {[%emt 0:06:45]} 10. Nbd2 {[%emt 0:00:26]} Nbd7 {[%emt 0:02:28]} 11. Qc2 {[%emt 0:02:14] LiveBook: 6 Games} h6 {[%emt 0:01:30]} (11... Qb8 12. Rfe1 Bf4 13. Bh4 Re8 14. Rxe8+ Qxe8 15. Re1 Qf8 16. Ne5 Nxe5 17. dxe5 Nd7 18. Bxh7+ {1-0 (42) Ovetchkin,R (2539)-Drozdovskij,Y (2552) playchess.com INT 2006}) 12. Bh4 {[%emt 0:00:22]} Bf4 {[%emt 0:09:48]} 13. Rae1 {[%emt 0:05:27]} Re8 {[%emt 0:06:21]} 14. h3 {[%emt 0:02:26]} Bxf3 {[%emt 0:09:21]} 15. Nxf3 {[%emt 0:01:41]} Qc7 $146 {[%emt 0:00:31]} ({Predecessor:} 15... Rxe1 16. Rxe1 {0-1 (43) Repkova,E (2300)-Nguyen,T (2150) Genting Highlands 1998}) 16. Bxf6 {[%emt 0:00:23]} Nxf6 {[%emt 0:01:11]} 17. g3 {[%emt 0:00:36]} Rxe1 {[%emt 0:00:20]} 18. Rxe1 {[%emt 0:00:05]} Bxg3 {[%emt 0:00:05]} 19. fxg3 {[%emt 0:00:08]} Qxg3+ {[%emt 0:00:04]} 20. Qg2 {[%emt 0:00:07]} Qf4 {[%emt 0:00:58]} 21. Qf2 {[%emt 0:05:47]} Re8 {[%emt 0:01:56]} 22. Ne5 {[%emt 0:05:18]} Qg5+ {[%emt 0:00:29]} 23. Kh2 {[%emt 0:00:20]} Qh5 {[%emt 0:01:07]} 24. Rg1 $18 {[%emt 0:00:58]} 1-0

[Event "FRA-ch Youth U14 2018"]
[Site "Agen"]
[Date "2018.04.15"]
[Round "1"]
[White "Moracchini, Margaux"]
[Black "Cathala, Emma"]
[Result "*"]
[ECO "C44"]
[WhiteElo "1939"]
[BlackElo "1293"]
[Annotator "NA RC"]
[PlyCount "22"]
[EventDate "2018.??.??"]
[EventType "swiss"]
[EventCountry "FRA"]
[SourceTitle "playchess.com"]
[Source "ChessBase"]
[SourceQuality "1"]
[TimeControl "5400+30"]

{[%evp 14,21,120,32767,0,-9,32767,0,-16,-5]} 1. e4 {[%emt 0:00:00]} e5 {[%emt 0:00:06]} 2. Nf3 {[%emt 0:00:00]} Nc6 {[%emt 0:01:03]} 3. d4 {[%emt 0:00:00]} exd4 {[%emt 0:00:33]} 4. Nxd4 {[%emt 0:00:00]} Nxd4 {[%emt 0:04:10]} 5. Qxd4 {[%emt 0:00:07]} Qf6 {[%emt 0:02:39]} 6. e5 {[%emt 0:00:22]} Qe6 {[%emt 0:01:35]} 7. Bc4 {[%emt 0:02:37]} c5 {[%emt 0:06:57]} 8. Qf4 {[%emt 0:04:04]} d5 {[%emt 0:04:28]} 9. Bb5+ {[%emt 0:02:22]} Bd7 {[%emt 0:00:24]} 10. Bxd7+ {[%emt 0:00:45]} Qxd7 {[%emt 0:00:10]} 11. O-O $11 {[%emt 0:01:32]} Qe6 {[%emt 0:04:59]} *

[Event "FRA-ch Youth U14 2018"]
[Site "Agen"]
[Date "2018.04.15"]
[Round "1"]
[White "Nguyen, Thao Nhi"]
[Black "Demais, Eilean"]
[Result "1-0"]
[ECO "B24"]
[WhiteElo "1861"]
[BlackElo "1266"]
[Annotator "NA RC"]
[PlyCount "87"]
[EventDate "2018.??.??"]
[EventType "swiss"]
[EventCountry "FRA"]
[SourceTitle "playchess.com"]
[Source "ChessBase"]
[SourceQuality "1"]
[TimeControl "5400+30"]

1. e4 {[%emt 0:00:00]} c5 {[%emt 0:00:12]} 2. Nc3 {[%emt 0:00:00]} Nc6 {[%emt 0:00:14]} 3. Bb5 {[%emt 0:00:00]} g6 {[%emt 0:00:21]} 4. Bxc6 {[%emt 0:00:00]} bxc6 {[%emt 0:00:21]} 5. f4 {[%emt 0:00:12]} Bg7 {[%emt 0:00:57]} 6. Nf3 {[%emt 0:00:07]} e6 {[%emt 0:01:29]} 7. O-O {[%emt 0:01:16]} Ne7 {[%emt 0:02:04]} 8. d3 {[%emt 0:00:39]} O-O {[%emt 0:04:54]} 9. Qe1 {[%emt 0:01:30]} Re8 {[%emt 0:04:32]} 10. Na4 {[%emt 0:01:21]} d6 {[%emt 0:03:17]} 11. e5 {[%emt 0:00:51]} dxe5 $18 {[%emt 0:09:54]} (11... Nd5 $16) 12. fxe5 {[%emt 0:00:36]} Qd5 {[%emt 0:08:21]} 13. Qc3 {[%emt 0:01:45]} c4 {[%emt 0:10:31]} 14. dxc4 {[%emt 0:01:10]} Qe4 {[%emt 0:02:54]} 15. Nc5 {[%emt 0:00:32]} Qg4 {[%emt 0:04:37]} 16. h3 {[%emt 0:06:48]} Qh5 {[%emt 0:04:14]} 17. Kh2 {[%emt 0:02:00]} g5 {[%emt 0:08:49]} 18. Nxg5 {[%emt 0:03:20]} Qg6 {[%emt 0:05:32]} 19. Nge4 {[%emt 0:08:50]} Nf5 {[%emt 0:06:58]} 20. g4 {[%emt 0:02:45]} Ne7 {[%emt 0:03:09]} 21. Nf6+ {[%emt 0:00:13]} Bxf6 {[%emt 0:03:38]} 22. Rxf6 {[%emt 0:00:11]} Qg7 {[%emt 0:00:43]} 23. Bh6 {[%emt 0:00:08]} Qh8 {[%emt 0:00:35]} 24. Raf1 {[%emt 0:01:06]} Rb8 {[%emt 0:01:27]} 25. Rxf7 {[%emt 0:00:24]} Ng6 {[%emt 0:00:58]} 26. Rg7+ {[%emt 0:06:32]} Qxg7 {[%emt 0:00:40]} 27. Bxg7 {[%emt 0:00:04]} Kxg7 {[%emt 0:00:20]} 28. Qd4 {[%emt 0:02:05]} Rb4 {[%emt 0:03:09]} 29. Ne4 {[%emt 0:01:50]} Rb7 {[%emt 0:01:18]} 30. Nd6 {[%emt 0:01:06]} Rd7 {[%emt 0:01:58]} 31. Qc5 {[%emt 0:00:16]} Rg8 {[%emt 0:01:32]} 32. Qxc6 {[%emt 0:00:19]} Nxe5 {[%emt 0:00:48]} 33. Qc5 {[%emt 0:00:25]} Ng6 {[%emt 0:00:52]} 34. Nxc8 {[%emt 0:00:23]} Rd2+ {[%emt 0:03:04]} 35. Kg3 {[%emt 0:00:15]} Rd7 {[%emt 0:00:27]} 36. Qc6 {[%emt 0:01:09]} Rgd8 {[%emt 0:01:39]} 37. Qxe6 {[%emt 0:00:16]} Rc7 {[%emt 0:00:50]} 38. Qf6+ {[%emt 0:00:17]} Kh6 {[%emt 0:01:16]} 39. g5+ {[%emt 0:00:34]} Kh5 {[%emt 0:00:12]} 40. Qf3+ {[%emt 0:00:24]} Kxg5 {[%emt 0:00:13]} 41. Qe3+ {[%emt 0:00:08]} Nf4 {[%emt 0:00:24]} 42. Qxf4+ {[%emt 0:00:09]} Kg6 {[%emt 0:00:09]} 43. Qf6+ {[%emt 0:00:01]} Kh5 {[%emt 0:00:17]} 44. Rf5# 1-0

[Event "FRA-ch Youth U14 2018"]
[Site "Agen"]
[Date "2018.04.15"]
[Round "1"]
[White "Avanesyan, Davit"]
[Black "Cohen Revivo, Shoham"]
[Result "0-1"]
[ECO "C00"]
[WhiteElo "1808"]
[BlackElo "2180"]
[Annotator "NA RC"]
[PlyCount "62"]
[EventDate "2018.??.??"]
[EventType "swiss"]
[EventCountry "FRA"]
[SourceTitle "playchess.com"]
[Source "ChessBase"]
[SourceQuality "1"]
[TimeControl "5400+30"]

1. e4 {[%emt 0:00:00]} e6 {[%emt 0:00:07]} 2. d3 {[%emt 0:00:00]} d5 {[%emt 0:00:05]} 3. Nd2 {[%emt 0:00:00]} Nf6 {[%emt 0:00:08]} 4. Ngf3 {[%emt 0:00:17]} Nc6 {[%emt 0:00:08]} 5. g3 {[%emt 0:01:33]} dxe4 {[%emt 0:00:08]} 6. dxe4 {[%emt 0:00:27]} e5 {[%emt 0:00:07]} 7. Bg2 {[%emt 0:01:13]} Bc5 {[%emt 0:00:15]} 8. Qe2 {[%emt 0:03:57]} O-O {[%emt 0:00:20]} 9. Nc4 {[%emt 0:02:06]} Qe7 {[%emt 0:02:53]} 10. h3 {[%emt 0:05:05]} a5 {[%emt 0:02:13]} 11. a4 {[%emt 0:10:25]} b6 {[%emt 0:00:19]} 12. c3 {[%emt 0:00:21]} Ba6 {[%emt 0:00:05]} 13. Nfd2 {[%emt 0:00:52]} Rfd8 {[%emt 0:01:40]} 14. Qf3 {[%emt 0:03:15]} Rd7 {[%emt 0:04:26]} 15. Bf1 Bb7 {[%emt 0:05:31]} 16. b3 {[%emt 0:05:01] [#]} Rad8 $17 {[%emt 0:00:44]} (16... Nb4 $1 $19 {[%cal Rb4c2][%mdl 512]} 17. cxb4 Bxb4) 17. Ne3 {[%emt 0:02:21]} Nb4 {[%emt 0:07:30]} 18. Nf5 {[%emt 0:37:51]} Qe8 {[%emt 0:00:12]} 19. cxb4 {[%emt 0:02:16]} Bxb4 {[%emt 0:00:02]} 20. Bb5 {[%emt 0:00:16]} Bxe4 {[%emt 0:00:25]} 21. Qe3 {[%emt 0:00:53]} c6 {[%emt 0:08:53]} 22. f3 {[%emt 0:07:00]} Rxd2 {[%emt 0:01:37]} 23. Bxd2 {[%emt 0:00:47]} Bxd2+ {[%emt 0:00:03]} 24. Qxd2 {[%emt 0:00:12]} Rxd2 {[%emt 0:00:10]} 25. Kxd2 {[%emt 0:00:37]} Bxf5 {[%emt 0:00:07]} 26. Be2 {[%emt 0:00:21]} e4 {[%emt 0:00:26]} 27. Ba6 {[%emt 0:02:01]} exf3 {[%emt 0:00:28]} 28. Rae1 {[%emt 0:00:15]} Ne4+ {[%emt 0:00:21]} 29. Ke3 {[%emt 0:00:29]} f2 {[%emt 0:00:25]} 30. Re2 {[%emt 0:00:47]} Nxg3+ {[%emt 0:00:25]} 31. Kf3 {[%emt 0:00:11]} Nxe2 {[%emt 0:00:09]} 0-1

[Event "FRA-ch Youth U14 2018"]
[Site "Agen"]
[Date "2018.04.15"]
[Round "1"]
[White "Delhoume, Sarah"]
[Black "Yuan, Beline"]
[Result "0-1"]
[ECO "A16"]
[WhiteElo "1299"]
[BlackElo "2035"]
[Annotator "NA RC"]
[PlyCount "73"]
[EventDate "2018.??.??"]
[EventType "swiss"]
[EventCountry "FRA"]
[SourceTitle "playchess.com"]
[Source "ChessBase"]
[SourceQuality "1"]
[TimeControl "5400+30"]

1. c4 {[%emt 0:00:00]} Nf6 {[%emt 0:02:14]} 2. Nc3 {[%emt 0:00:00]} g6 {[%emt 0:00:12]} 3. g3 {[%emt 0:00:00]} Bg7 {[%emt 0:00:10]} 4. Bg2 {[%emt 0:00:00]} d6 {[%emt 0:00:17]} 5. e3 {[%emt 0:00:13]} O-O {[%emt 0:00:35]} 6. Nge2 {[%emt 0:00:14]} e5 {[%emt 0:00:18]} 7. O-O {[%emt 0:00:21]} Nc6 {[%emt 0:00:19]} 8. Rb1 {[%emt 0:01:52]} a5 {[%emt 0:01:52] A25: English Opening vs King's Indian with ...Nc6 but without early d3} 9. a3 {[%emt 0:01:34]} Nh5 {[%emt 0:01:22]} 10. d3 {[%emt 0:06:21]} f5 {[%emt 0:02:38]} 11. f4 {[%emt 0:03:03]} (11. Nd5 Ne7 12. f4 c6 13. Ndc3 Be6 14. b4 axb4 15. axb4 d5 16. fxe5 Bxe5 {1-0 (41) Timofeev,A (2549)-Popov,M (2416) Sochi 2017}) 11... g5 $146 {[%emt 0:10:52]} ({Predecessor:} 11... exf4 $11 {remains equal.} 12. gxf4 Kh8 (12... Be6 13. Bd2 Nf6 14. Nd5 Kh8 15. Bc3 {0-1 (41) Small,G (2255)-Bryant,J (2193) Los Angeles 2007})) 12. e4 {[%emt 0:07:46]} gxf4 {[%emt 0:02:24]} 13. gxf4 {[%emt 0:01:01]} Ne7 {[%emt 0:13:02]} 14. d4 {[%emt 0:09:02]} fxe4 {[%emt 0:01:53]} 15. Nxe4 {[%emt 0:00:42]} Bg4 {[%emt 0:07:28]} 16. Qc2 {[%emt 0:01:33]} exd4 {[%emt 0:06:45]} 17. Bf3 {[%emt 0:01:41]} Qd7 {[%emt 0:01:23]} 18. Ng5 {[%emt 0:03:54]} Bf5 {[%emt 0:02:04]} 19. Be4 {[%emt 0:02:17]} h6 {[%emt 0:03:18]} 20. Nf3 {[%emt 0:01:19]} Bh3 {[%emt 0:04:24]} 21. Rf2 {[%emt 0:02:26]} Nf5 {[%emt 0:01:41]} 22. Bxf5 {[%emt 0:02:10]} Bxf5 {[%emt 0:00:48]} 23. Qb3 {[%emt 0:01:57]} Bxb1 $19 {[%emt 0:00:33]} 24. Qxb7 {[%emt 0:01:40]} Nf6 {[%emt 0:04:22]} 25. Nfxd4 {[%emt 0:01:07]} Be4 {[%emt 0:00:24]} 26. Qb3 {[%emt 0:00:23]} Rab8 {[%emt 0:01:43]} 27. Qg3 {[%emt 0:00:39]} Qg4 {[%emt 0:01:45]} 28. f5 {[%emt 0:03:29]} Qxg3+ {[%emt 0:01:30]} 29. Nxg3 {[%emt 0:00:13]} Ng4 {[%emt 0:02:34]} 30. Rd2 {[%emt 0:01:04]} Ba8 {[%emt 0:03:35]} 31. Ne6 {[%emt 0:01:33]} Rfe8 {[%emt 0:00:50]} 32. Nh5 {[%emt 0:01:01]} Be5 {[%emt 0:03:07]} 33. Nxc7 {[%emt 0:01:48]} Bxh2+ {[%emt 0:00:59]} 34. Kf1 {[%emt 0:00:57]} Rf8 {[%emt 0:03:15]} 35. Rxd6 {[%emt 0:00:54]} Bxd6 {[%emt 0:00:51]} 36. Ne6 Rxf5+ 37. Ke1 0-1

[Event "FRA-ch Youth U14 2018"]
[Site "Agen"]
[Date "2018.04.15"]
[Round "1"]
[White "Discors, Alice"]
[Black "Randrianarimanana, Alicia"]
[Result "0-1"]
[ECO "B01"]
[WhiteElo "1280"]
[BlackElo "1872"]
[Annotator "NA RC"]
[PlyCount "68"]
[EventDate "2018.??.??"]
[EventType "swiss"]
[EventCountry "FRA"]
[SourceTitle "playchess.com"]
[Source "ChessBase"]
[SourceQuality "1"]
[TimeControl "5400+30"]

1. e4 {[%emt 0:00:00]} d5 {[%emt 0:00:07]} 2. exd5 {[%emt 0:00:00]} Qxd5 {[%emt 0:00:05]} 3. Nc3 {[%emt 0:00:00]} Qd6 {[%emt 0:00:04]} 4. Bc4 {[%emt 0:00:53]} a6 {[%emt 0:00:35]} 5. Nf3 {[%emt 0:02:24]} Nf6 {[%emt 0:00:08]} 6. d4 {[%emt 0:02:21]} e6 {[%emt 0:01:52] B01: Scandinavian Defence} (6... b5 7. Bd3 Bb7 8. Qe2 Nbd7 9. O-O e6 10. a4 b4 11. Ne4 Qd5 12. Nxf6+ Nxf6 13. c4 bxc3 14. bxc3 Be7 {1-0 (48) Savic,M (2587)-Milanovic,D (2594) Belgrade 2015}) 7. O-O {[%emt 0:05:51]} b5 {[%emt 0:00:13]} 8. Bb3 {[%emt 0:02:18]} Bb7 {[%emt 0:00:05]} 9. Be3 {[%emt 0:02:43]} Ng4 {[%emt 0:03:07]} 10. g3 {[%emt 0:06:40] [#]} c5 $1 11. a3 $2 {[%emt 0:09:37]} (11. Bf4 $16 {keeps the pressure on.} Qd7 12. Ng5) 11... c4 {[%emt 0:20:46]} 12. Ba2 {[%emt 0:02:01]} Qc6 {[%emt 0:00:08]} 13. d5 $1 $146 {[%emt 0:13:09]} ({Find the theoretical novelty and annotate with similar games:} 13. h3 Qxf3 14. Qxf3 Bxf3 15. hxg4 {0-1 (43) Majirska,K (1528)-Liscinska,J (1725) Liptovsky Mikulas 2016}) 13... exd5 {[%emt 0:00:36]} 14. Nxd5 {[%emt 0:00:24]} Qxd5 {[%emt 0:00:30]} 15. Qxd5 {[%emt 0:00:39]} Bxd5 {[%emt 0:00:01]} 16. Nd4 {[%emt 0:05:02]} Nxe3 {[%emt 0:00:49]} 17. fxe3 {[%emt 0:00:26]} Nc6 {[%emt 0:02:11]} 18. Nxc6 {[%emt 0:21:02]} Bxc6 {[%emt 0:00:01]} 19. Rad1 {[%emt 0:00:17]} Bc5 {[%emt 0:00:21]} 20. Rfe1 {[%emt 0:00:51]} O-O {[%emt 0:00:11]} 21. Kf1 {[%emt 0:07:50]} Rfe8 {[%emt 0:01:02]} 22. Kf2 {[%emt 0:01:46]} g6 $19 {[%emt 0:00:42]} 23. b3 {[%emt 0:03:32]} cxb3 {[%emt 0:00:41]} 24. Bxb3 {[%emt 0:00:55]} Bxa3 {[%emt 0:00:24]} 25. Rd3 {[%emt 0:03:18]} Bb4 {[%emt 0:00:23]} 26. Rf1 {[%emt 0:00:59]} Rad8 {[%emt 0:01:02]} 27. Ke2 {[%emt 0:01:25]} Rf8 {[%emt 0:02:10]} 28. Bxf7+ {[%emt 0:05:24]} Kg7 {[%emt 0:00:32]} 29. Rxd8 {[%emt 0:00:59]} Rxd8 {[%emt 0:00:00]} 30. Bb3 {[%emt 0:01:31]} Rd2+ {[%emt 0:01:10]} 31. Ke1 {[%emt 0:00:11]} Rxc2+ {[%emt 0:01:02]} 32. Kd1 {[%emt 0:00:30]} Rd2+ {[%emt 0:00:09]} 33. Ke1 {[%emt 0:00:18]} Rb2+ {[%emt 0:00:27]} 34. Kd1 {[%emt 0:00:26]} Rxb3 {[%emt 0:00:04]} 0-1

[Event "FRA-ch Youth U14 2018"]
[Site "Agen"]
[Date "2018.04.16"]
[Round "2"]
[White "Yuan, Beline"]
[Black "Englisch, Caroline"]
[Result "0-1"]
[ECO "E77"]
[WhiteElo "2035"]
[BlackElo "1451"]
[Annotator "NA RC"]
[PlyCount "42"]
[EventDate "2018.??.??"]
[EventType "swiss"]
[EventCountry "FRA"]
[SourceTitle "playchess.com"]
[Source "ChessBase"]
[SourceQuality "1"]
[TimeControl "5400+30"]

{[%evp 18,41,54,21,27,20,40,34,32767,83,80,83,32767,32767,-15,-95,32767,-57,-5,-18,-27,-100,-102,-92,32767,0]} 1. d4 {[%emt 0:00:00]} Nf6 {[%emt 0:00:29]} 2. c4 {[%emt 0:00:18]} g6 {[%emt 0:00:38]} 3. Nc3 {[%emt 0:00:21]} Bg7 {[%emt 0:00:37]} 4. e4 {[%emt 0:00:38]} d6 {[%emt 0:00:28]} 5. f4 {[%emt 0:00:32]} O-O {[%emt 0:03:23]} 6. Nf3 {[%emt 0:00:38]} c5 {[%emt 0:01:38]} 7. d5 {[%emt 0:00:18]} e6 {[%emt 0:01:54]} 8. Bd3 {[%emt 0:00:43]} Re8 {[%emt 0:04:42]} 9. O-O {[%emt 0:00:16]} exd5 {[%emt 0:02:54]} 10. cxd5 {[%emt 0:00:21]} Na6 {[%emt 0:03:20] A68: Modern Benoni: Four Pawns Attack without 9...Re8} (10... c4 11. Bc2 Qb6+ 12. Kh1 Nbd7 13. Qe2 Nc5 14. Qxc4 Bd7 15. e5 Rac8 16. exf6 Bxf6 17. f5 Bxc3 18. bxc3 Bb5 19. Qd4 Bxf1 20. Bh6 Ne6 21. fxe6 Qxd4 22. Nxd4 Bc4 23. Ba4 b5 24. Nxb5 Bxb5 25. Bxb5 {1-0 (25) Gareyev,T (2590)-Dale,A (2374) Canberra 2018}) 11. Re1 {[%emt 0:06:04]} Nc7 {[%emt 0:05:37]} 12. a4 {[%emt 0:00:16]} b6 {[%emt 0:02:25]} 13. h3 {[%emt 0:06:42]} a6 {[%emt 0:11:18]} 14. Bc4 $146 {[%emt 0:00:00]} ({Find the theoretical novelty and annotate with similar games:} 14. Be3 Bd7 15. Bc2 b5 16. e5 {1-0 (16) Wicht,J (2217)-Schwab,T (2108) Cologne 2000}) 14... Bb7 15. Qb3 Rb8 {[%emt 0:07:22]} 16. e5 {[%emt 0:21:29]} (16. Qc2 $11) 16... Nd7 {[%emt 0:16:04]} 17. Bd2 {[%emt 0:14:43]} ({Of course not} 17. exd6 Rxe1+ 18. Nxe1 Ne8 $17) ({White should try} 17. e6 $11 Nf6 18. exf7+ Kxf7 19. Rxe8 Nfxe8 20. f5 (20. Qxb6 Ba8 $11)) 17... dxe5 {[%emt 0:06:12]} 18. d6 {[%emt 0:00:10]} Ne6 {[%emt 0:01:21]} 19. Nxe5 {[%emt 0:00:52]} (19. Nd5 $1 $11 {keeps the balance.}) 19... Nxe5 {[%emt 0:05:35]} 20. fxe5 {[%emt 0:00:08]} Kh8 {[%emt 0:03:41]} 21. Qd1 $11 {[%emt 0:07:26]} Qd7 {[%emt 0:02:37]} 0-1

[Event "FRA-ch Youth U14 2018"]
[Site "Agen"]
[Date "2018.04.16"]
[Round "2"]
[White "Randrianarimanana, Alicia"]
[Black "Piacentini, Angelina"]
[Result "1-0"]
[ECO "A06"]
[WhiteElo "1872"]
[BlackElo "1429"]
[Annotator "NA RC"]
[PlyCount "76"]
[EventDate "2018.??.??"]
[EventType "swiss"]
[EventCountry "FRA"]
[SourceTitle "playchess.com"]
[Source "ChessBase"]
[SourceQuality "1"]
[TimeControl "5400+30"]

{[%evp 10,76,8,6,8,2,15,20,20,32767,20,15,12,0,8,15,32767,32767,32767,32767,32767,32767,32767,10,25,20,87,32767,61,-103,10,0,32767,32767,32767,-20,32767,32767,32767,32767,32767,32767,685,760,835,880,843,945,912,832,5614,32767,32767,32767,29986,29984,5745,1452,1400,1187,1566,1603,1431,1144,32767,32767,32767,32767,29986]} 1. Nf3 {[%emt 0:02:58]} d5 {[%emt 0:00:59]} 2. b3 {[%emt 0:00:25]} b6 {[%emt 0:01:30]} 3. Bb2 {[%emt 0:03:31]} Bb7 {[%emt 0:02:19]} 4. e3 {[%emt 0:00:17]} Nf6 {[%emt 0:05:25]} 5. d4 {[%emt 0:00:14]} Nbd7 {[%emt 0:03:46]} 6. Bd3 {[%emt 0:00:06]} e6 {[%emt 0:01:05]} 7. O-O {[%emt 0:00:13]} Be7 {[%emt 0:03:51]} 8. c4 {[%emt 0:06:54]} c6 {[%emt 0:01:58]} 9. Nbd2 {[%emt 0:01:10]} O-O {[%emt 0:01:37]} 10. Ne5 {[%emt 0:02:07] D30: Queen's Gambit Declined: Systems without Nc3} (10. Qe2 Rc8 11. Ne5 c5 12. f4 Ne4 13. Bxe4 dxe4 14. Rad1 cxd4 15. Nxe4 Nxe5 16. fxe5 Bxe4 17. Rxd4 Bd5 18. cxd5 Bc5 19. Rd3 exd5 20. Qf3 {1-0 (38) Eljanov,P (2760)-Van Wely,L (2640) Wijk aan Zee 2016}) 10... c5 {[%emt 0:01:39]} 11. f4 {[%emt 0:04:22]} Ne4 {[%emt 0:02:11] LiveBook: 5 Games} 12. cxd5 {[%emt 0:09:11]} exd5 {[%emt 0:01:52]} 13. Rf3 $146 {[%emt 0:01:07]} ({Predecessor:} 13. Ndf3 Rc8 14. Nxd7 Qxd7 15. dxc5 Nxc5 {1-0 (47) Shen,Y (2465)-Wang,D (2191) Shenzhen 2017}) 13... f6 {[%emt 0:02:28]} 14. Nxd7 {[%emt 0:00:34]} Qxd7 {[%emt 0:01:21]} 15. Rh3 {[%emt 0:00:56]} f5 {[%emt 0:02:22]} 16. Nf3 {[%emt 0:13:32]} ({Reject} 16. Bxe4 $6 fxe4 17. dxc5 Qf5 $11) (16. dxc5 $16 Nxd2 17. cxb6 (17. Qxd2 bxc5 18. Rc1 Rf7 $14)) 16... Rac8 {[%emt 0:09:47]} 17. Ne5 {[%emt 0:00:27]} Qe6 {[%emt 0:01:05]} (17... Qe8 $11 {keeps the balance.}) 18. Qh5 {[%emt 0:02:50]} h6 {[%emt 0:03:03]} 19. Be2 $2 {[%emt 0:09:10] [#]} (19. Bxe4 $1 $14 {keeps the upper hand.} fxe4 20. Rg3) 19... Bd6 {[%emt 0:06:56]} ({Better is} 19... c4 $1 $17 20. g4 c3) 20. dxc5 Rxc5 {[%emt 0:07:41]} 21. Bd4 {[%emt 0:09:06]} Rc2 {[%emt 0:00:51]} 22. Bd1 {[%emt 0:03:10]} (22. Bd3 $5 {[%cal Rd3c2]} Rd2 23. Bxe4 dxe4 24. Rg3 $11) 22... Rd2 {[%emt 0:04:57]} 23. Nf3 {[%emt 0:06:54]} Rf2 {[%emt 0:10:37]} 24. Ng5 {[%emt 0:07:54]} hxg5 {[%emt 0:03:59]} 25. fxg5 {[%emt 0:06:01]} Nxg5 $2 {[%emt 0:08:21]} (25... Qe7 26. Qh7+ (26. g6 Rxg2+ 27. Kxg2 Qg5+ 28. Qxg5 Nxg5 $18) 26... Kf7) 26. Qxg5 {[%emt 0:00:43]} Be5 {[%emt 0:01:29]} 27. Kxf2 {[%emt 0:00:38]} Bxd4 {[%emt 0:00:59]} 28. exd4 {[%emt 0:00:06]} f4 {[%emt 0:01:03]} 29. Qh5 {[%emt 0:04:29]} Re8 {[%emt 0:02:22]} 30. Qh8+ {[%emt 0:02:10]} Kf7 {[%emt 0:00:20]} 31. Bh5+ {[%emt 0:00:53]} g6 {[%emt 0:03:09]} 32. Qh7+ {[%emt 0:00:05]} Kf8 {[%emt 0:01:10]} 33. Qxg6 {[%emt 0:00:31]} (33. Bxg6 $142 Qf6 34. Qh8+ Qxh8 35. Rxh8+ Kg7 36. Rxe8 Kxg6 37. Rc1 Kf6 38. Re5) 33... Qxg6 {[%emt 0:02:34]} 34. Bxg6 {[%emt 0:00:01]} Re6 {[%emt 0:00:20]} 35. Bf5 {[%emt 0:00:15]} Rf6 {[%emt 0:00:45]} 36. Bg4 {[%emt 0:00:06]} Kg7 {[%emt 0:00:49]} 37. Rc1 {[%emt 0:00:05]} Rf7 {[%emt 0:00:21]} 38. Rhc3 {[%emt 0:00:40]} Bc8 1-0